[Event "Late-Titled-Tuesday-Blitz-May-14-2024"]
[Site "Chess.com"]
[Date "2024.05.14"]
[Round "7"]
[White "jeetjain"]
[Black "urano56"]
[Result "1-0"]
[WhiteElo "2582"]
[BlackElo "2437"]
[TimeControl "180+1"]
[EndTime "15:15:33 PDT"]
[Termination "jeetjain won on time"]

1. Nf3 {[%clk 0:02:49.8]} 1... Nf6 {[%clk 0:02:57.5]} 2. b3 {[%clk 0:02:50.4]}
2... c5 {[%clk 0:02:54.1]} 3. Bb2 {[%clk 0:02:50.5]} 3... Nc6 {[%clk 0:02:54]}
4. e3 {[%clk 0:02:50.7]} 4... e6 {[%clk 0:02:51]} 5. c4 {[%clk 0:02:49.2]} 5...
Be7 {[%clk 0:02:50.1]} 6. Nc3 {[%clk 0:02:48.1]} 6... O-O {[%clk 0:02:49.8]} 7.
Be2 {[%clk 0:02:47]} 7... d5 {[%clk 0:02:49]} 8. cxd5 {[%clk 0:02:47.2]} 8...
exd5 {[%clk 0:02:46.9]} 9. d4 {[%clk 0:02:47.3]} 9... Re8 {[%clk 0:02:39.3]} 10.
O-O {[%clk 0:02:47]} 10... a6 {[%clk 0:02:34.2]} 11. Rc1 {[%clk 0:02:45.5]}
11... b6 {[%clk 0:02:33.2]} 12. dxc5 {[%clk 0:02:44.4]} 12... bxc5 {[%clk
0:02:32.3]} 13. Na4 {[%clk 0:02:44.4]} 13... Ne4 {[%clk 0:02:18.7]} 14. Nd2
{[%clk 0:02:38.1]} 14... Bf6 {[%clk 0:02:00.6]} 15. Nxe4 {[%clk 0:02:25.3]}
15... Bxb2 {[%clk 0:01:57.6]} 16. Rxc5 {[%clk 0:02:25.1]} 16... Ba3 {[%clk
0:01:45.6]} 17. Rxc6 {[%clk 0:02:23.6]} 17... dxe4 {[%clk 0:01:41.7]} 18. Qc2
{[%clk 0:02:21.6]} 18... Qg5 {[%clk 0:01:23.1]} 19. Kh1 {[%clk 0:02:11.2]} 19...
Bd7 {[%clk 0:01:17.2]} 20. Rc4 {[%clk 0:02:08.8]} 20... Rac8 {[%clk 0:00:57.5]}
21. Nb6 {[%clk 0:02:05.8]} 21... Rxc4 {[%clk 0:00:55.5]} 22. Bxc4 {[%clk
0:02:05]} 22... Bb5 {[%clk 0:00:46.4]} 23. Bxb5 {[%clk 0:02:02.4]} 23... Qxb5
{[%clk 0:00:43.9]} 24. Nc4 {[%clk 0:02:02.1]} 24... Bf8 {[%clk 0:00:30.2]} 25.
Rd1 {[%clk 0:02:01.4]} 25... f5 {[%clk 0:00:27.6]} 26. h3 {[%clk 0:02:00.9]}
26... Rc8 {[%clk 0:00:23.9]} 27. Qd2 {[%clk 0:01:59.2]} 27... g6 {[%clk
0:00:12.3]} 28. Qd5+ {[%clk 0:01:56.4]} 28... Qxd5 {[%clk 0:00:12.4]} 29. Rxd5
{[%clk 0:01:57.3]} 29... Rc6 {[%clk 0:00:12.7]} 30. Kg1 {[%clk 0:01:57.4]} 30...
Bg7 {[%clk 0:00:10.3]} 31. Kf1 {[%clk 0:01:54.8]} 31... Kf7 {[%clk 0:00:09]} 32.
Rd7+ {[%clk 0:01:54.6]} 32... Kf8 {[%clk 0:00:07.3]} 33. Ke2 {[%clk 0:01:54.3]}
33... h5 {[%clk 0:00:07.7]} 34. Rd6 {[%clk 0:01:50.3]} 34... Rxd6 {[%clk
0:00:06.1]} 35. Nxd6 {[%clk 0:01:51.2]} 35... Ke7 {[%clk 0:00:06.4]} 36. Nc4
{[%clk 0:01:50.4]} 36... Kd7 {[%clk 0:00:05.7]} 37. Kd2 {[%clk 0:01:45.5]} 37...
Kc6 {[%clk 0:00:05.8]} 38. Kc2 {[%clk 0:01:44.7]} 38... Kc5 {[%clk 0:00:06.2]}
39. a3 {[%clk 0:01:44.6]} 39... Kb5 {[%clk 0:00:05.2]} 40. Nd6+ {[%clk
0:01:41.5]} 40... Kc6 {[%clk 0:00:05.2]} 41. Nf7 {[%clk 0:01:39.8]} 41... Kd7
{[%clk 0:00:00.5]} 42. Ng5 {[%clk 0:01:37.1]} 1-0

[Event "Late-Titled-Tuesday-Blitz-May-14-2024"]
[Site "Chess.com"]
[Date "2024.05.14"]
[Round "7"]
[White "picturesquecheck"]
[Black "Byniolus"]
[Result "0-1"]
[WhiteElo "2462"]
[BlackElo "2747"]
[TimeControl "180+1"]
[EndTime "15:15:34 PDT"]
[Termination "Byniolus won by resignation"]

1. Nf3 {[%clk 0:03:00.9]} 1... d6 {[%clk 0:02:59.8]} 2. g3 {[%clk 0:03:00.5]}
2... c6 {[%clk 0:03:00.7]} 3. Bg2 {[%clk 0:03:00.7]} 3... g6 {[%clk 0:03:01.6]}
4. O-O {[%clk 0:03:00.5]} 4... e6 {[%clk 0:03:02.5]} 5. d4 {[%clk 0:03:00.7]}
5... f6 {[%clk 0:03:03.4]} 6. c4 {[%clk 0:03:00.5]} 6... b6 {[%clk 0:03:04]} 7.
a4 {[%clk 0:02:59.8]} 7... a6 {[%clk 0:03:04.1]} 8. a5 {[%clk 0:03:00.3]} 8...
b5 {[%clk 0:03:04.4]} 9. Nbd2 {[%clk 0:02:57.9]} 9... h6 {[%clk 0:03:03.3]} 10.
Ne1 {[%clk 0:02:55.7]} 10... Ne7 {[%clk 0:03:01.6]} 11. Nef3 {[%clk 0:02:56]}
11... Bg7 {[%clk 0:03:00.1]} 12. Ne1 {[%clk 0:02:56]} 12... O-O {[%clk
0:02:59.7]} 13. Nef3 {[%clk 0:02:55.5]} 13... Nd7 {[%clk 0:02:52.4]} 14. e4
{[%clk 0:02:50.4]} 14... f5 {[%clk 0:02:47.8]} 15. Re1 {[%clk 0:02:46.2]} 15...
Nf6 {[%clk 0:02:45.2]} 16. e5 {[%clk 0:02:17.9]} 16... dxe5 {[%clk 0:02:46.1]}
17. dxe5 {[%clk 0:02:06.3]} 17... Nd7 {[%clk 0:02:22.1]} 18. b3 {[%clk
0:02:04.8]} 18... Nc5 {[%clk 0:02:07.8]} 19. Qc2 {[%clk 0:01:17.6]} 19... Qd3
{[%clk 0:01:58.5]} 20. Qxd3 {[%clk 0:01:09.4]} 20... Nxd3 {[%clk 0:01:59.4]} 21.
Re3 {[%clk 0:01:09.2]} 21... Nxc1 {[%clk 0:01:55.3]} 22. Rxc1 {[%clk 0:01:10.1]}
22... Rd8 {[%clk 0:01:51.8]} 23. Re2 {[%clk 0:01:01.8]} 23... Ra7 {[%clk
0:01:45.7]} 24. Nf1 {[%clk 0:00:58.9]} 24... g5 {[%clk 0:01:35.7]} 25. h4 {[%clk
0:00:56.9]} 25... g4 {[%clk 0:01:34.5]} 26. Ne1 {[%clk 0:00:53.6]} 26... Rad7
{[%clk 0:01:23.7]} 27. Rec2 {[%clk 0:00:49]} 27... b4 {[%clk 0:01:19.8]} 28. f4
{[%clk 0:00:41.6]} 28... gxf3 {[%clk 0:01:10.8]} 29. Nxf3 {[%clk 0:00:41.8]}
29... c5 {[%clk 0:01:09]} 30. Kh2 {[%clk 0:00:30.9]} 30... Nc6 {[%clk
0:01:05.1]} 31. Re2 {[%clk 0:00:18.5]} 31... Nxa5 {[%clk 0:01:04]} 32. Ra1
{[%clk 0:00:18.1]} 32... Nxb3 {[%clk 0:01:03.3]} 33. Ra4 {[%clk 0:00:16.9]}
33... Nd4 {[%clk 0:00:57.8]} 34. Nxd4 {[%clk 0:00:17.2]} 34... Rxd4 {[%clk
0:00:58.7]} 0-1

[Event "Late-Titled-Tuesday-Blitz-May-14-2024"]
[Site "Chess.com"]
[Date "2024.05.14"]
[Round "7"]
[White "Mbneu"]
[Black "doublesik"]
[Result "0-1"]
[WhiteElo "2265"]
[BlackElo "2551"]
[TimeControl "180+1"]
[EndTime "15:15:37 PDT"]
[Termination "doublesik won by resignation"]

1. d4 {[%clk 0:02:56.6]} 1... d5 {[%clk 0:02:57.2]} 2. c4 {[%clk 0:02:56.8]}
2... e6 {[%clk 0:02:56.9]} 3. Nf3 {[%clk 0:02:55.8]} 3... Nf6 {[%clk 0:02:56.4]}
4. g3 {[%clk 0:02:56]} 4... Bb4+ {[%clk 0:02:55.4]} 5. Bd2 {[%clk 0:02:55.2]}
5... Bd6 {[%clk 0:02:55.2]} 6. Bg2 {[%clk 0:02:53.5]} 6... c6 {[%clk 0:02:54.8]}
7. Qc2 {[%clk 0:02:52.7]} 7... Nbd7 {[%clk 0:02:48.7]} 8. O-O {[%clk 0:02:50.6]}
8... O-O {[%clk 0:02:47.4]} 9. Bc3 {[%clk 0:02:50.6]} 9... Ne4 {[%clk
0:02:33.9]} 10. Nbd2 {[%clk 0:02:48.8]} 10... f5 {[%clk 0:02:25.6]} 11. Ne1
{[%clk 0:02:16]} 11... g5 {[%clk 0:02:04]} 12. Nd3 {[%clk 0:02:00.8]} 12... Nxd2
{[%clk 0:01:54.4]} 13. Bxd2 {[%clk 0:02:01.7]} 13... Qf6 {[%clk 0:01:11.9]} 14.
e3 {[%clk 0:01:47.7]} 14... h5 {[%clk 0:00:59.1]} 15. f4 {[%clk 0:01:44]} 15...
g4 {[%clk 0:00:54.6]} 16. Ne5 {[%clk 0:01:40.3]} 16... h4 {[%clk 0:00:48.3]} 17.
Rf2 {[%clk 0:01:30.5]} 17... Kg7 {[%clk 0:00:45.6]} 18. cxd5 {[%clk 0:01:07]}
18... cxd5 {[%clk 0:00:43.3]} 19. Qa4 {[%clk 0:01:06.4]} 19... Nb6 {[%clk
0:00:37]} 20. Qb3 {[%clk 0:01:01.1]} 20... Qe7 {[%clk 0:00:33.1]} 21. a3 {[%clk
0:00:59.2]} 21... Bd7 {[%clk 0:00:33.2]} 22. Bb4 {[%clk 0:00:57.8]} 22... Rac8
{[%clk 0:00:29.7]} 23. Rc2 {[%clk 0:00:42.8]} 23... Ba4 {[%clk 0:00:28.3]} 0-1

[Event "Late-Titled-Tuesday-Blitz-May-14-2024"]
[Site "Chess.com"]
[Date "2024.05.14"]
[Round "7"]
[White "Kozok"]
[Black "klifus"]
[Result "1/2-1/2"]
[WhiteElo "2297"]
[BlackElo "2142"]
[TimeControl "180+1"]
[EndTime "15:15:37 PDT"]
[Termination "Game drawn by repetition"]

1. e4 {[%clk 0:02:54.5]} 1... c5 {[%clk 0:02:58.7]} 2. Nf3 {[%clk 0:02:55]} 2...
d6 {[%clk 0:02:57.8]} 3. d3 {[%clk 0:02:52.8]} 3... Nc6 {[%clk 0:02:56.6]} 4.
Nc3 {[%clk 0:02:52.1]} 4... g6 {[%clk 0:02:56.5]} 5. Be2 {[%clk 0:02:51.7]} 5...
Bg7 {[%clk 0:02:56.4]} 6. O-O {[%clk 0:02:52.3]} 6... Nf6 {[%clk 0:02:55.6]} 7.
Ne1 {[%clk 0:02:50.6]} 7... O-O {[%clk 0:02:52.6]} 8. f4 {[%clk 0:02:50.2]} 8...
Rb8 {[%clk 0:02:50.5]} 9. Nf3 {[%clk 0:02:47.2]} 9... b5 {[%clk 0:02:49.5]} 10.
Qe1 {[%clk 0:02:47.8]} 10... b4 {[%clk 0:02:47.7]} 11. Nd1 {[%clk 0:02:48]}
11... Nd4 {[%clk 0:02:44.2]} 12. Nxd4 {[%clk 0:02:28.7]} 12... cxd4 {[%clk
0:02:43.8]} 13. b3 {[%clk 0:02:26.1]} 13... Qb6 {[%clk 0:02:36.8]} 14. Bb2
{[%clk 0:01:55.3]} 14... Bg4 {[%clk 0:02:33]} 15. Bxg4 {[%clk 0:01:51]} 15...
Nxg4 {[%clk 0:02:31.8]} 16. h3 {[%clk 0:01:50]} 16... Ne3 {[%clk 0:02:28.8]} 17.
Nxe3 {[%clk 0:01:41.9]} 17... dxe3 {[%clk 0:02:28.8]} 18. Bxg7 {[%clk
0:01:42.7]} 18... Kxg7 {[%clk 0:02:28.3]} 19. Rf3 {[%clk 0:01:33.7]} 19... Rbc8
{[%clk 0:02:23.8]} 20. Qe2 {[%clk 0:01:19]} 20... Rc3 {[%clk 0:02:17.6]} 21. Rc1
{[%clk 0:01:11.8]} 21... Rfc8 {[%clk 0:02:16.4]} 22. f5 {[%clk 0:01:11.2]} 22...
Qc5 {[%clk 0:02:11.5]} 23. Rxe3 {[%clk 0:00:48.1]} 23... Rxc2 {[%clk 0:02:05.2]}
24. Rxc2 {[%clk 0:00:47.3]} 24... Qxc2 {[%clk 0:02:03.9]} 25. fxg6 {[%clk
0:00:30.9]} 25... hxg6 {[%clk 0:02:02.6]} 26. e5 {[%clk 0:00:27.6]} 26... d5
{[%clk 0:01:48.3]} 27. d4 {[%clk 0:00:14.1]} 27... Qxe2 {[%clk 0:01:27.5]} 28.
Rxe2 {[%clk 0:00:15]} 28... Rc1+ {[%clk 0:01:26.3]} 29. Kf2 {[%clk 0:00:14.9]}
29... Rd1 {[%clk 0:01:26]} 30. Ke3 {[%clk 0:00:15.4]} 30... g5 {[%clk
0:01:24.6]} 31. Rc2 {[%clk 0:00:14.8]} 31... e6 {[%clk 0:01:18.3]} 32. Rc7
{[%clk 0:00:14.9]} 32... Rg1 {[%clk 0:01:12.4]} 33. Kf2 {[%clk 0:00:11.2]} 33...
Rd1 {[%clk 0:01:10.7]} 34. Ke3 {[%clk 0:00:09.9]} 34... Rg1 {[%clk 0:01:06.9]}
35. Kf2 {[%clk 0:00:06.7]} 35... Rd1 {[%clk 0:01:06.1]} 36. Ke3 {[%clk
0:00:07.4]} 1/2-1/2

[Event "Late-Titled-Tuesday-Blitz-May-14-2024"]
[Site "Chess.com"]
[Date "2024.05.14"]
[Round "7"]
[White "dennisodessa"]
[Black "VelandiaSaurio"]
[Result "0-1"]
[WhiteElo "2463"]
[BlackElo "2636"]
[TimeControl "180+1"]
[EndTime "15:15:38 PDT"]
[Termination "VelandiaSaurio won by resignation"]

1. d4 {[%clk 0:03:00]} 1... d5 {[%clk 0:03:00]} 2. c4 {[%clk 0:02:57.9]} 2... c6
{[%clk 0:02:59.8]} 3. Nf3 {[%clk 0:02:58]} 3... Nf6 {[%clk 0:02:58.7]} 4. e3
{[%clk 0:02:56.8]} 4... e6 {[%clk 0:02:58.7]} 5. Nbd2 {[%clk 0:02:55.8]} 5...
Nbd7 {[%clk 0:02:58.2]} 6. b3 {[%clk 0:02:56.1]} 6... b6 {[%clk 0:02:51.8]} 7.
Bb2 {[%clk 0:02:56]} 7... Bb7 {[%clk 0:02:51.8]} 8. Bd3 {[%clk 0:02:56.5]} 8...
Rc8 {[%clk 0:02:52.2]} 9. O-O {[%clk 0:02:56.4]} 9... Be7 {[%clk 0:02:52.7]} 10.
Ne5 {[%clk 0:02:56.1]} 10... O-O {[%clk 0:02:51.6]} 11. f4 {[%clk 0:02:56.4]}
11... c5 {[%clk 0:02:51.6]} 12. Rc1 {[%clk 0:02:56.6]} 12... cxd4 {[%clk
0:02:51.7]} 13. exd4 {[%clk 0:02:56.8]} 13... dxc4 {[%clk 0:02:52.6]} 14. bxc4
{[%clk 0:02:56.5]} 14... Re8 {[%clk 0:02:49.3]} 15. Bb1 {[%clk 0:02:55.5]} 15...
Nf8 {[%clk 0:02:48.5]} 16. f5 {[%clk 0:02:42.9]} 16... exf5 {[%clk 0:02:22.8]}
17. Bxf5 {[%clk 0:02:43.8]} 17... Rc7 {[%clk 0:02:20.7]} 18. Ndf3 {[%clk
0:02:28.5]} 18... Ng6 {[%clk 0:02:07]} 19. Nxf7 {[%clk 0:02:19.5]} 19... Bxf3
{[%clk 0:02:00]} 20. Nxd8 {[%clk 0:01:57.4]} 20... Bxd1 {[%clk 0:01:59.9]} 21.
Ne6 {[%clk 0:01:58.3]} 21... Rxc4 {[%clk 0:01:34.4]} 22. Rxc4 {[%clk 0:01:38.9]}
22... Be2 {[%clk 0:01:33.2]} 23. Rc7 {[%clk 0:01:39.8]} 23... Bxf1 {[%clk
0:01:28.1]} 24. Kxf1 {[%clk 0:01:40.7]} 24... Nd5 {[%clk 0:01:23.5]} 25. Rxa7
{[%clk 0:01:37]} 25... Ne3+ {[%clk 0:01:23.5]} 26. Kf2 {[%clk 0:01:12.7]} 26...
Nxf5 {[%clk 0:01:24.4]} 27. d5 {[%clk 0:01:12.3]} 27... Bf6 {[%clk 0:01:15.2]}
28. Bxf6 {[%clk 0:01:10.3]} 28... gxf6 {[%clk 0:01:16.1]} 29. Rb7 {[%clk
0:00:38.1]} 29... Nf8 {[%clk 0:01:15.5]} 30. Nc7 {[%clk 0:00:19.1]} 30... Rd8
{[%clk 0:01:07.9]} 31. Rxb6 {[%clk 0:00:18.6]} 31... Nd7 {[%clk 0:01:06.3]} 32.
Ra6 {[%clk 0:00:08.1]} 32... Nc5 {[%clk 0:01:06.7]} 33. Rxf6 {[%clk 0:00:08.3]}
33... Ne4+ {[%clk 0:01:05.4]} 0-1

[Event "Late-Titled-Tuesday-Blitz-May-14-2024"]
[Site "Chess.com"]
[Date "2024.05.14"]
[Round "7"]
[White "ansko1999"]
[Black "Seochesspie"]
[Result "1-0"]
[WhiteElo "2642"]
[BlackElo "2824"]
[TimeControl "180+1"]
[EndTime "15:15:39 PDT"]
[Termination "ansko1999 won by resignation"]

1. c4 {[%clk 0:03:00.9]} 1... e6 {[%clk 0:02:59.4]} 2. g3 {[%clk 0:02:57.9]}
2... d5 {[%clk 0:02:59]} 3. Bg2 {[%clk 0:02:58]} 3... d4 {[%clk 0:02:57.3]} 4.
d3 {[%clk 0:02:55.5]} 4... Ne7 {[%clk 0:02:55.3]} 5. e3 {[%clk 0:02:50.2]} 5...
Nbc6 {[%clk 0:02:52.3]} 6. Ne2 {[%clk 0:02:45.8]} 6... g6 {[%clk 0:02:38.2]} 7.
exd4 {[%clk 0:02:43.2]} 7... Bg7 {[%clk 0:02:30.3]} 8. Nbc3 {[%clk 0:02:26.6]}
8... Nxd4 {[%clk 0:02:25.7]} 9. Nxd4 {[%clk 0:02:25.7]} 9... Bxd4 {[%clk
0:02:26.3]} 10. Be3 {[%clk 0:02:19.3]} 10... O-O {[%clk 0:02:22.4]} 11. O-O
{[%clk 0:02:17.9]} 11... Nf5 {[%clk 0:02:22]} 12. Qe2 {[%clk 0:02:10]} 12...
Nxe3 {[%clk 0:02:20.7]} 13. fxe3 {[%clk 0:02:10.9]} 13... Bg7 {[%clk 0:02:18.7]}
14. d4 {[%clk 0:02:10.8]} 14... c6 {[%clk 0:02:19]} 15. Rad1 {[%clk 0:02:08.3]}
15... Qe7 {[%clk 0:02:17.9]} 16. e4 {[%clk 0:02:07.2]} 16... Bd7 {[%clk
0:02:18]} 17. e5 {[%clk 0:02:06.9]} 17... c5 {[%clk 0:01:46.4]} 18. Ne4 {[%clk
0:02:05.5]} 18... cxd4 {[%clk 0:01:43.9]} 19. Nf6+ {[%clk 0:02:06.1]} 19... Kh8
{[%clk 0:01:29.8]} 20. Rxd4 {[%clk 0:02:01.3]} 20... Qc5 {[%clk 0:01:22.2]} 21.
Qe3 {[%clk 0:01:50.3]} 21... Bc6 {[%clk 0:01:22.2]} 22. Bxc6 {[%clk 0:01:39.8]}
22... bxc6 {[%clk 0:01:22.2]} 23. b4 {[%clk 0:01:23.1]} 23... Qxb4 {[%clk
0:01:06.1]} 24. Rh4 {[%clk 0:01:22]} 24... h5 {[%clk 0:01:03.7]} 25. Qg5 {[%clk
0:00:51.9]} 25... Qb6+ {[%clk 0:00:46.2]} 26. Kh1 {[%clk 0:00:41.9]} 1-0

[Event "Late-Titled-Tuesday-Blitz-May-14-2024"]
[Site "Chess.com"]
[Date "2024.05.14"]
[Round "7"]
[White "CarlosjPineror"]
[Black "FredddieCroderg"]
[Result "1-0"]
[WhiteElo "2738"]
[BlackElo "2339"]
[TimeControl "180+1"]
[EndTime "15:15:46 PDT"]
[Termination "CarlosjPineror won by resignation"]

1. e4 {[%clk 0:03:00.9]} 1... c6 {[%clk 0:02:59.3]} 2. Nc3 {[%clk 0:02:59.6]}
2... d5 {[%clk 0:03:00.2]} 3. Qf3 {[%clk 0:02:59.5]} 3... d4 {[%clk 0:02:58.4]}
4. Bc4 {[%clk 0:02:59.5]} 4... e6 {[%clk 0:02:57.1]} 5. Nce2 {[%clk 0:02:58.9]}
5... c5 {[%clk 0:02:54.6]} 6. d3 {[%clk 0:02:41.2]} 6... Nc6 {[%clk 0:02:52.9]}
7. a3 {[%clk 0:02:39.5]} 7... Ne5 {[%clk 0:02:44.9]} 8. Bb5+ {[%clk 0:02:39.4]}
8... Bd7 {[%clk 0:02:41.9]} 9. Bxd7+ {[%clk 0:02:39.9]} 9... Qxd7 {[%clk
0:02:41.5]} 10. Qg3 {[%clk 0:02:40.4]} 10... Nc6 {[%clk 0:02:38.3]} 11. f4
{[%clk 0:02:39.7]} 11... Nf6 {[%clk 0:02:36.8]} 12. Nf3 {[%clk 0:02:39.6]} 12...
Be7 {[%clk 0:02:33.9]} 13. O-O {[%clk 0:02:39.2]} 13... O-O {[%clk 0:02:32.7]}
14. Ne5 {[%clk 0:02:37.6]} 14... Qc7 {[%clk 0:02:30.3]} 15. Nc4 {[%clk 0:02:13]}
15... b5 {[%clk 0:02:25.8]} 16. Nd2 {[%clk 0:02:13.3]} 16... Rac8 {[%clk
0:02:16.7]} 17. Nf3 {[%clk 0:02:08.3]} 17... c4 {[%clk 0:02:14.8]} 18. Bd2
{[%clk 0:02:08.4]} 18... cxd3 {[%clk 0:02:12.5]} 19. cxd3 {[%clk 0:02:08.7]}
19... Qb6 {[%clk 0:02:10.7]} 20. Rac1 {[%clk 0:02:04.4]} 20... b4 {[%clk
0:02:05]} 21. a4 {[%clk 0:02:03.4]} 21... b3 {[%clk 0:02:02]} 22. Rc4 {[%clk
0:02:01.4]} 22... a5 {[%clk 0:01:59.3]} 23. Rfc1 {[%clk 0:01:59.4]} 23... Na7
{[%clk 0:01:47.5]} 24. Ne5 {[%clk 0:01:51.8]} 24... Rxc4 {[%clk 0:01:44.1]} 25.
Nxc4 {[%clk 0:01:48.3]} 25... Qa6 {[%clk 0:01:28.8]} 26. Nxd4 {[%clk 0:01:37.8]}
26... Rd8 {[%clk 0:01:22.8]} 27. Nxb3 {[%clk 0:01:31.1]} 27... Nc6 {[%clk
0:01:10.7]} 28. Nbxa5 {[%clk 0:01:27.1]} 28... Nxa5 {[%clk 0:01:10.5]} 29. Bxa5
{[%clk 0:01:23.9]} 29... Bc5+ {[%clk 0:00:59.3]} 30. Kh1 {[%clk 0:01:20.8]}
30... h5 {[%clk 0:00:34.4]} 31. Bxd8 {[%clk 0:01:13.7]} 31... Ng4 {[%clk
0:00:32.2]} 32. h3 {[%clk 0:01:05.6]} 32... Bf2 {[%clk 0:00:11.8]} 33. Qf3
{[%clk 0:01:02.9]} 1-0

[Event "Late-Titled-Tuesday-Blitz-May-14-2024"]
[Site "Chess.com"]
[Date "2024.05.14"]
[Round "7"]
[White "bazar-wokzal"]
[Black "geordie_derraugh"]
[Result "1-0"]
[WhiteElo "2609"]
[BlackElo "2475"]
[TimeControl "180+1"]
[EndTime "15:15:49 PDT"]
[Termination "bazar-wokzal won by resignation"]

1. e4 {[%clk 0:03:00.9]} 1... e5 {[%clk 0:02:59.3]} 2. Bc4 {[%clk 0:03:00]} 2...
Nc6 {[%clk 0:02:58.2]} 3. f4 {[%clk 0:02:59.7]} 3... exf4 {[%clk 0:02:57.4]} 4.
d4 {[%clk 0:02:59.6]} 4... Qh4+ {[%clk 0:02:51.2]} 5. Kf1 {[%clk 0:02:59.5]}
5... d5 {[%clk 0:02:50.4]} 6. Bxd5 {[%clk 0:02:59]} 6... Bg4 {[%clk 0:02:48.5]}
7. Qd3 {[%clk 0:02:56.2]} 7... Nge7 {[%clk 0:02:46]} 8. Bxf4 {[%clk 0:02:50.3]}
8... Qf6 {[%clk 0:02:43.1]} 9. Qg3 {[%clk 0:02:07.3]} 9... Nxd5 {[%clk 0:02:28]}
10. exd5 {[%clk 0:02:06.8]} 10... Nxd4 {[%clk 0:02:28.2]} 11. Qxg4 {[%clk
0:02:01.2]} 11... Bd6 {[%clk 0:02:00.7]} 12. Nh3 {[%clk 0:01:53.2]} 12... g5
{[%clk 0:01:55.8]} 13. Nc3 {[%clk 0:01:08.8]} 13... Bxf4 {[%clk 0:01:49.4]} 14.
Nxf4 {[%clk 0:01:07.7]} 14... Qxf4+ {[%clk 0:01:42.9]} 15. Qxf4 {[%clk
0:01:07.8]} 15... gxf4 {[%clk 0:01:43.8]} 16. Re1+ {[%clk 0:01:04.8]} 16... Kd8
{[%clk 0:01:37.4]} 17. Re4 {[%clk 0:01:04.6]} 17... Nxc2 {[%clk 0:01:36.1]} 18.
Rxf4 {[%clk 0:01:01.2]} 18... Re8 {[%clk 0:01:34.3]} 19. Kf2 {[%clk 0:00:57.9]}
19... Ne3 {[%clk 0:01:34.1]} 20. Re1 {[%clk 0:00:53.2]} 20... Nc2 {[%clk
0:01:31.4]} 21. Rxe8+ {[%clk 0:00:46]} 21... Kxe8 {[%clk 0:01:31]} 22. Ke2
{[%clk 0:00:46.7]} 22... a5 {[%clk 0:01:29.2]} 23. a3 {[%clk 0:00:46.6]} 23...
Na1 {[%clk 0:01:29.2]} 24. Nb5 {[%clk 0:00:42]} 24... Rc8 {[%clk 0:01:25]} 25.
Nd4 {[%clk 0:00:28.7]} 25... a4 {[%clk 0:01:22.7]} 26. Nb5 {[%clk 0:00:18.8]}
26... Nb3 {[%clk 0:01:12.5]} 27. Rxa4 {[%clk 0:00:18.1]} 27... Nc5 {[%clk
0:01:13.1]} 28. Rc4 {[%clk 0:00:17.4]} 28... b6 {[%clk 0:01:03.6]} 29. b4 {[%clk
0:00:17.3]} 29... Nb7 {[%clk 0:01:00.4]} 30. Rxc7 {[%clk 0:00:15.1]} 30... Rxc7
{[%clk 0:01:00.1]} 31. Nxc7+ {[%clk 0:00:15.6]} 31... Kd7 {[%clk 0:01:00.8]} 32.
Nb5 {[%clk 0:00:16.1]} 32... Nd8 {[%clk 0:00:55.9]} 33. Ke3 {[%clk 0:00:15.2]}
33... f6 {[%clk 0:00:55.8]} 34. Kf4 {[%clk 0:00:15]} 34... Nf7 {[%clk 0:00:55]}
35. Kf5 {[%clk 0:00:15.2]} 35... Ke7 {[%clk 0:00:55.6]} 36. d6+ {[%clk
0:00:14.5]} 36... Kd7 {[%clk 0:00:55.1]} 37. Kxf6 {[%clk 0:00:14.5]} 37... Nh6
{[%clk 0:00:56]} 38. h3 {[%clk 0:00:14.3]} 38... Ng8+ {[%clk 0:00:56]} 39. Kg7
{[%clk 0:00:14.2]} 1-0

[Event "Late-Titled-Tuesday-Blitz-May-14-2024"]
[Site "Chess.com"]
[Date "2024.05.14"]
[Round "7"]
[White "SpeedofLight0"]
[Black "ArtemDyachuk"]
[Result "1-0"]
[WhiteElo "3012"]
[BlackElo "2710"]
[TimeControl "180+1"]
[EndTime "15:15:50 PDT"]
[Termination "SpeedofLight0 won on time"]

1. d4 {[%clk 0:03:00.9]} 1... Nf6 {[%clk 0:02:59.4]} 2. Nc3 {[%clk 0:03:00.6]}
2... d5 {[%clk 0:02:58.6]} 3. Bf4 {[%clk 0:03:01.3]} 3... g6 {[%clk 0:02:56]} 4.
Qd2 {[%clk 0:03:00.2]} 4... h6 {[%clk 0:02:52.5]} 5. h4 {[%clk 0:02:59.7]} 5...
Bg7 {[%clk 0:02:53]} 6. f3 {[%clk 0:02:59]} 6... c5 {[%clk 0:02:52.9]} 7. e3
{[%clk 0:02:59.2]} 7... Nc6 {[%clk 0:02:48.9]} 8. O-O-O {[%clk 0:02:58.3]} 8...
Qa5 {[%clk 0:02:28.2]} 9. Kb1 {[%clk 0:02:55.2]} 9... a6 {[%clk 0:02:26.9]} 10.
dxc5 {[%clk 0:02:40.5]} 10... Qxc5 {[%clk 0:02:22.7]} 11. Nxd5 {[%clk
0:02:40.2]} 11... Nxd5 {[%clk 0:02:23.5]} 12. Qxd5 {[%clk 0:02:40.7]} 12... Qa7
{[%clk 0:01:51.2]} 13. Bc4 {[%clk 0:02:20.6]} 13... Be6 {[%clk 0:01:50.2]} 14.
Qe4 {[%clk 0:02:03]} 14... Bf5 {[%clk 0:01:48]} 15. Bxf7+ {[%clk 0:01:26]} 15...
Kxf7 {[%clk 0:01:44.3]} 16. Qc4+ {[%clk 0:01:26.7]} 16... Be6 {[%clk 0:01:43.1]}
17. Qe4 {[%clk 0:01:26.7]} 17... Qb6 {[%clk 0:01:36.2]} 18. b3 {[%clk
0:01:24.4]} 18... Qc5 {[%clk 0:01:08.3]} 19. Ne2 {[%clk 0:01:12.7]} 19... Bf5
{[%clk 0:00:50.9]} 20. Rd5 {[%clk 0:01:12.5]} 20... Bxe4 {[%clk 0:00:34.1]} 21.
Rxc5 {[%clk 0:01:12.7]} 21... Bf5 {[%clk 0:00:34.6]} 22. h5 {[%clk 0:01:13]}
22... Rac8 {[%clk 0:00:29.9]} 23. e4 {[%clk 0:01:11.4]} 23... Be6 {[%clk
0:00:28.1]} 24. hxg6+ {[%clk 0:01:11.3]} 24... Kxg6 {[%clk 0:00:29]} 25. Be3
{[%clk 0:01:08.6]} 25... Kf7 {[%clk 0:00:22.9]} 26. Nf4 {[%clk 0:01:08.8]} 26...
Nd4 {[%clk 0:00:05.2]} 27. Rxc8 {[%clk 0:00:59.9]} 27... Bxc8 {[%clk 0:00:06.1]}
28. Nh5 {[%clk 0:00:58.6]} 28... Nc6 {[%clk 0:00:05.4]} 29. Nxg7 {[%clk
0:00:51.1]} 29... Kxg7 {[%clk 0:00:06.3]} 30. Bd2 {[%clk 0:00:51.3]} 30... e5
{[%clk 0:00:05.5]} 31. Kc1 {[%clk 0:00:51.6]} 31... Rf8 {[%clk 0:00:05]} 32.
Bxh6+ {[%clk 0:00:51.4]} 1-0